Cogmind - Beta 17 @@@ ROGUE MODE // 2026.08.13 @ 02:58:59 Player: biznut Result: Destroyed by Y-45 Defender with Heavy Assault Rifle Performance ------------- Evolutions (1) 500 Regions Visited (2) 400 Robots Destroyed (21) 105 Value Destroyed (480) 480 Prototype IDs (2) 40 Alien Tech Used (0) 0 Bonus (0) 0 TOTAL SCORE: 1525 Bonus ------- None Cogmind --------- Core Integrity 0/400 Matter 139/300 Energy 100/100 System Corruption 0% Temperature Cool (0) Movement Core (100) Ox1 Location -9/Materials Parts ------- > --- POWER (1) -------- (None) > --- PROPULSION (3) --- (None) > --- UTILITY (3) ------ Small Storage Unit Signal Interpreter > --- WEAPON (2) ------- (None) > --- INVENTORY (8) ---- Light Nuclear Core Heat Sink Weight Redist. System ECM Suite ECM Suite Hardened Light Armor Plating Hacking Suite Autogun Peak State ------------ > --- POWER ------------ Cooled Ion Engine > --- PROPULSION ------- Aluminum Leg Aluminum Leg Aluminum Leg > --- UTILITY ---------- Small Storage Unit Signal Interpreter ECM Suite > --- WEAPON ----------- Improved Assault Rifle Rocket Launcher > --- INVENTORY -------- Light Nuclear Core Heat Sink Weight Redist. System ECM Suite ECM Suite Hardened Light Armor Plating Hacking Suite Autogun [Rating: 15] Favorites ----------- Power Light Nuclear Core Engine Cooled Ion Engine Power Core Light Nuclear Core Propulsion Aluminum Leg Leg Aluminum Leg Utility Small Storage Unit Device ECM Suite Storage Small Storage Unit Processor Signal Interpreter Weapon Beam Cannon Energy Gun Particle Gun Energy Cannon Beam Cannon Ballistic Gun Improved Assault Rifle Ballistic Cannon Light Cannon Launcher Rocket Launcher Build | -11 -10 -9 ------- Run | Yrd Mat Mat Slots Evolved 2 | . . 2 Power . | . . . Propulsion 1 | . . 1 Utility 1 | . . 1 Weapon . | . . . Parts Attached 18 | 6 5 7 Power 3 | 1 1 1 Engine 2 | 1 . 1 Core 1 | . 1 . Reactor . | . . . Propulsion 3 | 2 . 1 Treads . | . . . Leg 3 | 2 . 1 Wheel . | . . . Hover . | . . . Flight . | . . . Utility 3 | 1 1 1 Device 1 | . . 1 Storage 1 | 1 . . Processor 1 | . 1 . Hackware . | . . . Protection . | . . . Artifact . | . . . Weapon 9 | 2 3 4 Energy Gun 3 | 2 1 . Energy Cannon 1 | . 1 . Ballistic Gun 2 | . . 2 Ballistic Cannon 2 | . 1 1 Launcher 1 | . . 1 Special Weapon . | . . . Impact Weapon . | . . . Slashing Weapon . | . . . Piercing Weapon . | . . . Special Melee Weapon . | . . . Unidentified Prototypes 2 | . . 2 Parts Lost 7 | . . 7 Power 1 | . . 1 Propulsion 3 | . . 3 Utility 1 | . . 1 Weapon 2 | . . 2 Highest Loss Streak 7 | . . 7 To Critical Strikes . | . . . Average Backups 5 | 1 3 7 Power 1 | . 1 1 Propulsion . | . . . Utility 2 | . . 4 Weapon 1 | . 1 1 Tool/Special . | . . . Unused Backups 10 | . . 10 Power 2 | . . 2 Propulsion . | . . . Utility 6 | . . 6 Weapon 1 | . . 1 Tool/Special 1 | . . 1 Average Slot Usage (%) 87 | . 96 80 Engine 6 | . 6 6 Core 5 | . 8 2 Leg 22 | . 26 19 Device 5 | . . 10 Storage 12 | . 13 11 Processor 11 | . 13 11 Energy Gun 8 | . 15 2 Energy Cannon 5 | . 9 2 Ballistic Gun 3 | . . 5 Ballistic Cannon 2 | . 4 1 Launcher 3 | . . 6 Peak Build Rating 15 | 6 10 15 Average Rating 9 | 4 8 11 On Entrance 5 | . 6 10 Avg Prop Armor Cover (%) . | . . . Naked Turns . | . . . Heaviest Build 23 | 13 16 23 Greatest Support 30 | 20 20 30 Greatest Overweight (x) 3 | 1 1 3 Average Overweight (x) . | . . . Largest Inventory Capacity 8 | 8 8 8 Average Capacity 7 | 6 7 8 Most Carried 8 | 2 8 8 Average Carried 5 | 1 3 7 Final Capacity 8 | 8 8 8 Final Carried 8 | 2 8 8 Class Distribution -------------------- 100% | Mutant Dominant Class ---------------- Mutant | -10/Materials Mutant | -9/Materials Resources | -11 -10 -9 ----------- Run | Yrd Mat Mat Matter Collected 433 | 216 153 64 Remotely . | . . . Salvage Created 412 | . 190 222 Parts 33 | . 5 28 Haulers Intercepted . | . . . Recyclers Shooed 1 | . . 1 Parts Field Recycled . | . . . Retrieved Matter . | . . . Parts Self-Destructed . | . . . Prevented . | . . . Parts Restored . | . . . Kills | -11 -10 -9 ------- Run | Yrd Mat Mat Combat Hostiles Destroyed 11 | . 4 7 Guns 3 | . 2 1 Cannons 2 | . 2 . AOE 6 | . . 6 Classes Destroyed 7 | . 2 5 Worker 2 | . . 2 Builder 4 | . . 4 Operator 2 | . 1 1 Watcher 2 | . . 2 Swarmer 2 | . . 2 Grunt 7 | . 4 3 Sentry 2 | . . 2 Best Kill Streak 7 | . 2 7 Combat Bots Only 4 | . 2 4 Max Kills in Single Turn 2 | . 1 2 Gunslinging . | . . . Exploded 2 | . . 2 Melee . | . . . Uniques/NPCs Destroyed . | . . . Combat | -11 -10 -9 -------- Run | Yrd Mat Mat Hostile Shots Fired 162 | . 26 136 Missed 55 | . 11 44 Hits 107 | . 15 92 Projectile 107 | . 15 92 Damage Taken 1320 | . 196 1124 Core 432 | . 28 404 Absorbed by Shields . | . . . Regen/Repaired (Parts) 85 | . 71 14 Core Remaining (%) 94 | 100 88 . Volleys Fired 33 | . 18 15 Largest 2 | . 2 2 Hottest 125 | . 125 125 Shots Fired 63 | . 35 28 Gun 28 | . 17 11 Cannon 23 | . 18 5 Launcher 12 | . . 12 Special . | . . . Kinetic 17 | . 3 14 Thermal 34 | . 32 2 Explosive 12 | . . 12 Electromagnetic . | . . . Robot Hit Streak 12 | . 12 4 Robot Miss Streak 3 | . 2 3 Penetration Max . | . . . Secondary Targets . | . . . Shots Hit Robots 42 | . 24 18 Core Hits 37 | . 11 26 Critical Kills . | . . . Critical Parts Destroyed . | . . . Critical Strikes 2 | . . 2 Burn 1 | . . 1 Blast 1 | . . 1 Melee Attacks . | . . . Impact . | . . . Slashing . | . . . Piercing . | . . . Sneak Attacks . | . . . Combat Hostiles . | . . . Follow-up Attacks . | . . . Damage Inflicted 1595 | . 409 1186 Guns 322 | . 164 158 Cannons 271 | . 230 41 Explosions 986 | . . 986 Melee . | . . . Ramming 16 | . 15 1 Kinetic 186 | . 19 167 Thermal 407 | . 375 32 Explosive 986 | . . 986 Electromagnetic . | . . . Impact . | . . . Slashing . | . . . Piercing . | . . . Highest Corruption . | . . . Average Corruption . | . . . Corruption Purged . | . . . Corruption Blocked . | . . . Overload Shots . | . . . Overflow Damage 31 | . . 31 Projectiles . | . . . Explosions 31 | . . 31 Melee . | . . . Knockbacks . | . . . Impact . | . . . Kinetic . | . . . Secondary . | . . . Self-Inflicted Damage 146 | . . 146 Shots 7 | . . 7 Rammed . | . . . Targets Rammed 6 | . 4 2 Kicked 6 | . 4 2 Crushed . | . . . Highest Temperature 455 | . 455 60 Average Temperature 148 | . 162 18 Received Heat Transfer 363 | . 108 255 Effects 3 | . 3 . Shutdowns 1 | . 1 . Matter Decay 1 | . 1 . Damage (minor) 1 | . 1 . Siege Activations . | . . . Martial Activations . | . . . Shielding Activations . | . . . Robots Disrupted . | . . . Combat Hostiles . | . . . Robots Corrupted . | . . . Combat Hostiles . | . . . Parts Fried . | . . . Impact Corruptions . | . . . Robots Melted . | . . . Combat Hostiles . | . . . Parts Melted 4 | . 1 3 Heat Transferred 964 | . 816 148 Parts Sabotaged . | . . . Parts Stolen . | . . . Parts Stripped . | . . . Power Chain Reactions . | . . . Alert | -11 -10 -9 ------- Run | Yrd Mat Mat Maximum Alert Level 1 | . . 1 Low Security (%) 98 | 100 100 96 Level 1 1 | . . 3 Level 2 . | . . . Level 3 . | . . . Level 4 . | . . . Level 5 . | . . . High Security . | . . . Max Security . | . . . Peak Influence 229 | . 50 229 Initial . | . . . Average 36 | . 11 63 Influence Increases 458 | . 105 353 Destroy 0b10 Robot/C 220 | . 80 140 Destroy 0b10 Robot/NC 50 | . 5 45 Destroy Leader 64 | . 20 44 Successful Hack 8 | . . 8 Disable Machine 30 | . . 30 Destroy Structure 86 | . . 86 Influence Decreases 313 | . 105 208 Time Decay 243 | . 105 138 Lost Part 70 | . . 70 Squads Dispatched 2 | . . 2 Investigation . | . . . Extermination . | . . . Reinforcement 2 | . . 2 Assault . | . . . Garrison . | . . . Intercept . | . . . Searches Triggered . | . . . Construction Impeded 1 | . . 1 Haulers Reinforced . | . . . Active Scanning Responses . | . . . Cargo Convoy Interrupts . | . . . Stealth | -11 -10 -9 --------- Run | Yrd Mat Mat Distress Signals 1 | . . 1 Communications Jammed . | . . . Distress Signals . | . . . Times Spotted 31 | . 10 21 Peak Tracking Total 8 | . 3 8 Tactical Retreats 2 | . . 2 ECM-based Alert Blocks 5 | . . 5 Traps | -11 -10 -9 ------- Run | Yrd Mat Mat Traps Triggered . | . . . Indirectly . | . . . Trap Hack Attempts . | . . . Triggered . | . . . Disarmed . | . . . Reprogrammed . | . . . Reused . | . . . Traps Extracted . | . . . Installed . | . . . Triggered . | . . . Machines | -11 -10 -9 ---------- Run | Yrd Mat Mat Machines Disabled 2 | . . 2 Max in Single Turn 1 | . . 1 Machines Repaired . | . . . Machines Dismantled . | . . . Machines Sabotaged . | . . . Overloaded Fab Kills . | . . . Hacking | -11 -10 -9 --------- Run | Yrd Mat Mat Machines Accessed 6 | . 2 4 Terminals 4 | . 1 3 Fabricators . | . . . Repair Stations 2 | . 1 1 Recycling Units . | . . . Scanalyzers . | . . . Garrison Access . | . . . Total Hacks 14 | . 6 8 Successful 8 | . 3 5 Failed 6 | . 3 3 Catastrophic . | . . . Database Lockouts . | . . . Manual . | . . . Terminals 7 | . 2 5 Fabricators . | . . . Repair Stations 7 | . 4 3 Recycling Units . | . . . Scanalyzers . | . . . Garrison Access . | . . . Terminal Hacks 3 | . . 3 Recall Investigation 1 | . . 1 Zone Layout 2 | . . 2 Fabricator Hacks . | . . . Repair Station Hacks 5 | . 3 2 Scan Component 3 | . 2 1 Repair 2 | . 1 1 Recycling Unit Hacks . | . . . Scanalyzer . | . . . Garrison Access Hacks . | . . . Unauthorized Hacks . | . . . Terminals . | . . . Fabricators . | . . . Repair Stations . | . . . Recycling Units . | . . . Scanalyzers . | . . . Garrison Access . | . . . Data Cores Recovered 2 | . 1 1 Used . | . . . Hacking Detections 2 | . 1 1 Full Trace Events . | . . . Feedback Events . | . . . Feedback Blocked . | . . . Robot Schematics Acquired . | . . . Robots Built . | . . . Authchips . | . . . Time . | . . . Total Robot Build Rating . | . . . Part Schematics Acquired . | . . . Parts Built . | . . . Authchips . | . . . Time . | . . . Total Part Build Rating . | . . . Part Studies Acquired . | . . . Parts Repaired 2 | . 1 1 Time 74 | . 36 38 Parts Recycled . | . . . Recycled Matter . | . . . Retrieved Matter . | . . . Retrieved Components . | . . . Parts Scanalyzed . | . . . Part Schematics Acquired . | . . . Parts Damaged . | . . . Bothacking | -11 -10 -9 ------------ Run | Yrd Mat Mat Used RIF Installer . | . . . Robots Hacked . | . . . Non-combat . | . . . Combat . | . . . Robot Hacks Applied . | . . . Relay Couplers Released . | . . . Fabnet Peak Effective % . | . . . Robots Rewired . | . . . Allies Hacked . | . . . Hacks Repelled . | . . . Allies | -11 -10 -9 -------- Run | Yrd Mat Mat Total Allies . | . . . Largest Group . | . . . Highest-Rated Group . | . . . Highest-Rated Ally . | . . . Total Orders . | . . . Ally Attacks . | . . . Total Damage . | . . . Kills . | . . . Allies Corrupted . | . . . Allies Melted . | . . . Intel | -11 -10 -9 ------- Run | Yrd Mat Mat Active Infowar (turns) 450 | . . 450 ECM 450 | . . 450 Robot Analysis Total . | . . . Derelict Logs Recovered . | . . . Drone Launches . | . . . Drone Recoveries . | . . . Exploration | -11 -10 -9 ------------- Run | Yrd Mat Mat Turns Passed 952 | 62 412 478 Spaces Moved 526 | 47 233 246 Core 57 | 10 . 47 Treads . | . . . Legs 469 | 37 233 199 Wheels . | . . . Hover . | . . . Flight . | . . . Fastest Speed 50 | 50 120 100 Average Speed 134 | 110 122 150 Slowest Speed 200 | 120 190 200 Overloaded Moves . | . . . Propulsion Burnouts . | . . . Robots Hopped . | . . . Potential Cave-ins 5 | . . 5 Cave-ins Triggered . | . . . Exploration Rate (%) 21 | 3 36 26 Regions Visited 2 Branch Regions . Pre-discovered Areas . | . . . Known Exits Taken 1 | . 1 . Unknown Exits Taken 1 | 1 . . Scrap Searched . | . . . Spaces Dug . | . . . Terrain Destroyed 114 | . . 114 Melee . | . . . Projectile . | . . . AOE 114 | . . 114 Terrain Rammed . | . . . Walls Destroyed . | . . . Machines Disabled . | . . . Actions | -11 -10 -9 --------- Run | Yrd Mat Mat Total 706 | 54 323 329 Wait 89 | . 50 39 Move 524 | 46 232 246 Hop . | . . . Pick Up 16 | 2 6 8 Fast Attach 16 | 6 5 5 Attach 4 | . 2 2 Detach 3 | . 2 1 Swap 2 | . 1 1 Drop 13 | . 3 10 Fire 33 | . 18 15 Melee . | . . . Ram . | . . . Kick 6 | . 4 2 Crush . | . . . Escape Stasis . | . . . Rewire . | . . . Trap . | . . . Miscellaneous . | . . . Route ------- -11/Scrapyard -10/Materials -9/Materials History --------- Turn | Location | Event 13 | -11/Scrapyard | Discovered new exit (range 15) 63 | -11/Scrapyard | Entered Materials 300 | -10/Materials | Build established: Mutant 383 | -10/Materials | Repaired Broken Aluminum Leg 426 | -10/Materials | Discovered new exit (range 16) 474 | -10/Materials | Identified exit to Materials 475 | -10/Materials | Entered another Materials area 475 | -9/Materials | Evolved 2 slots: Propulsion x1, Utility x1 529 | -9/Materials | Repaired Lgt. Nuclear Core 917 | -9/Materials | Core integrity fell below 50% 945 | -9/Materials | Core integrity fell below 20% 953 | -9/Materials | Destroyed by Y-45 Defender with Heavy Assault Rifle Last Messages --------------- 00860_ S-10 Pest destroyed. 00861_ U-05 Engineer builds a Wall. 00866_ U-05 Engineer builds a Door. 00868_ Destroyed Lgt. Ion Engine. 00868_ S-10 Pest destroyed. 00869_ U-05 Engineer sends out distress signal. 00874_ R-06 Scavenger collects Lgt. Assault Rifle. 00875_ Aluminum Leg destroyed. 00878_ B-36 Bruiser Hammer blasted off. 00882_ Rocket Launcher destroyed. 00884_ The unstable cave ceiling collapses. 00885_ Cld. Ion Engine destroyed. 00887_ Aluminum Leg destroyed. 00900_ Imp. Light Cannon destroyed. 00925_ ECM Suite destroyed. 00927_ M-13 Machinist repairs S-10 Pest. 00929_ M-13 Machinist repairs S-10 Pest Lgt. Ion Engine. 00953_ A-02 Transporter destroyed. Map ----- +----------------------------------------------------+ | | | | | ??????????????????????????????? | | ??????????????????????????????? | | ??????????????????????????????? | | ??????????????????????????????? | | ??????????????????????????????? | | ??????????????????????????????? | | ??????????????????????????????? | | ??????????????????????????????? | | ??????????????????????????????? | | ?????????????????????????#+##?? | | ????????????????????????? #?? | | ????????????????????????? #?? | | ????????????????????????? #?? | | ????????????????????????? #?? | | ????????????????????????# #?? | | ???????????????????????? #?? | | ???????????????????????? #?? | | ???????????????????????? #?? | | ????????????????????????# * #?? | | ????????????????????????#!]=#?? | | ????????????????????????#]%]#?? | | ????????????????????????#]]]#?? | | ????????????????????????#!! #?? | | ????????????????????????#@ #?? | | ???????????????????????## ##? | | ???????????????????????# #? | | ???????????????######### #? | | #####????????# ][ * + ! #? | | #######??# # Y #? | | " # ???# ]# #? | | " #""" ???# ?### ###? | | " #""" ????#########???#s#??? | | #""" ?????############ #??? | | # ??????# [ ## #??? | | #+### ??????# ## #??? | | ##+###????# ## #??? | | ###### """ """ ##u#??? | | / """ """ ## #??? | | ###### """ """ ## #??? | | ##????# ## #??? | | #?????# ## #??? | | #?????#####/###### #??? | | #????????# #??? | | ########## #######??? | | / ## ????? | | * ## ????? | | ############## ## ????? | | ############??# ## ????? | +----------------------------------------------------+ Best States ------------- Heat Dissipation 28 Energy Generation 14 Energy Capacity 280 Matter Stores 300 Matter Capacity 300 Sight Range 16 Terrain Scan Density 10 ECM Strength 1 Evasion (%) 55 Item Schematics ----------------- None Robot Schematics ------------------ None Fabricated ------------ Nothing Repaired ---------- Aluminum Leg | 21% | -10/Materials | Broken Lgt. Nuclear Core | 72% | -9/Materials Studied --------- None Alien Tech Used ----------------- None Achievements -------------- I Have A Map? Resistances Are Futile Challenges ------------ None Game ------ Seed FlightZioniteForcegen Manual? 0 Play Time 00:24:06 Cumulative 19.2 hours Start 2026.08.13 @ 02:33:05 End 2026.08.13 @ 02:58:59 Sessions 1 Manual Loads 0 Difficulty Rogue Special Mode None Game No. 24 Rogue 24 Adventurer 0 Explorer 0 Win Type - Total 0 Types 0/0/0/0/0/0/0/0/0/0 Lore% 11 Gallery% 14 Achievement% 11 Wizard Run 0 Options --------- Layout 1 ASCII 0 Keyboard 1 Movement Numpad Keybinds 1 Fullscreen 2 Font 32/SmallcapsGlow Map View 50x40 Zoom Use 90% Tactical HUD 1 Map Filters NONE Filters NONE Steam 1 RUN: 861c00ed-c965-4356-be4c-90771877795d